[Event "Titled Tuesday Blitz April 12 Late 2022"]
[White "Quesada Perez, Yuniesky"]
[Black "Petrovskyi, Vadym"]
[WhiteFideId "3504409"]
[BlackFideId "14165210"]
[WhiteElo "2622"]
[BlackElo "2400"]
[Result "1-0"]
[Round "07"]
[TimeControl "180+1"]
[Date "2022.04.12"]
[WhiteClock "0:02:11"]
[BlackClock "0:02:19"]

1. e4 {[%clk 0:03:00]}  c5 {[%clk 0:02:57]} 2. Nf3 {[%clk 0:03:00]}  d6 {[%clk 0:02:57]} 3. d4 {[%clk 0:03:00]}  cxd4 {[%clk 0:02:57]} 4. Nxd4 {[%clk 0:03:00]}  Nf6 {[%clk 0:02:58]} 5. Nc3 {[%clk 0:03:01]}  a6 {[%clk 0:02:57]} 6. Be2 {[%clk 0:02:59]}  e5 {[%clk 0:02:57]} 7. Nb3 {[%clk 0:02:58]}  Be7 {[%clk 0:02:57]} 8. Be3 {[%clk 0:02:55]}  Be6 {[%clk 0:02:56]} 9. Qd3 {[%clk 0:02:52]}  Nbd7 {[%clk 0:02:55]} 10. Nd5 {[%clk 0:02:51]}  Bxd5 {[%clk 0:02:51]} 11. exd5 {[%clk 0:02:50]}  O-O {[%clk 0:02:51]} 12. a4 {[%clk 0:02:46]}  b6 {[%clk 0:02:44]} 13. g4 {[%clk 0:02:33]}  Nc5 {[%clk 0:02:41]} 14. Nxc5 {[%clk 0:02:31]}  dxc5 {[%clk 0:02:42]} 15. O-O-O {[%clk 0:02:27]}  b5 {[%clk 0:02:40]} 16. d6 {[%clk 0:02:26]}  c4 {[%clk 0:02:37]} 17. dxe7 {[%clk 0:02:20]}  Qxe7 {[%clk 0:02:22]} 18. Qd6 {[%clk 0:02:19]}  Qe8 {[%clk 0:02:19]} 19. Bc5 {[%clk 0:02:11]} 1-0


[Site "https://www.chess.com"]

[Event "Titled Tuesday Blitz April 12 Late 2022"]
[White "Romanchuk, Viktor"]
[Black "Urazayev, Arystanbek"]
[WhiteFideId "14109271"]
[BlackFideId "13709810"]
[WhiteElo "2560"]
[BlackElo "2772"]
[Result "0-1"]
[Round "07"]
[TimeControl "180+1"]
[Date "2022.04.13"]
[WhiteClock "0:00:54"]
[BlackClock "0:01:51"]

1. d4 {[%clk 0:03:00]}  Nf6 {[%clk 0:02:58]} 2. c4 {[%clk 0:03:01]}  g6 {[%clk 0:02:59]} 3. Nc3 {[%clk 0:03:00]}  Bg7 {[%clk 0:03:00]} 4. Nf3 {[%clk 0:03:00]}  O-O {[%clk 0:03:00]} 5. g3 {[%clk 0:03:01]}  d5 {[%clk 0:02:59]} 6. cxd5 {[%clk 0:03:01]}  Nxd5 {[%clk 0:03:00]} 7. Bg2 {[%clk 0:03:02]}  c5 {[%clk 0:03:00]} 8. O-O {[%clk 0:02:58]}  Nxc3 {[%clk 0:02:56]} 9. bxc3 {[%clk 0:02:58]}  Nc6 {[%clk 0:02:55]} 10. e3 {[%clk 0:02:57]}  Bf5 {[%clk 0:02:44]} 11. Ba3 {[%clk 0:02:47]}  cxd4 {[%clk 0:02:32]} 12. cxd4 {[%clk 0:02:47]}  Be4 {[%clk 0:02:32]} 13. Qb3 {[%clk 0:02:35]}  Na5 {[%clk 0:02:31]} 14. Qb4 {[%clk 0:02:34]}  Qd5 {[%clk 0:02:29]} 15. Ne1 {[%clk 0:02:18]}  Bxg2 {[%clk 0:02:28]} 16. Nxg2 {[%clk 0:02:19]}  e5 {[%clk 0:02:25]} 17. dxe5 {[%clk 0:02:14]}  Qxe5 {[%clk 0:02:22]} 18. Rac1 {[%clk 0:01:57]}  b6 {[%clk 0:02:21]} 19. Nf4 {[%clk 0:01:54]}  Rfc8 {[%clk 0:02:18]} 20. e4 {[%clk 0:01:38]}  Bf8 {[%clk 0:02:17]} 21. Qa4 {[%clk 0:01:25]}  Bxa3 {[%clk 0:02:15]} 22. Qxa3 {[%clk 0:01:25]}  Qxe4 {[%clk 0:02:15]} 23. Rce1 {[%clk 0:01:23]}  Qf5 {[%clk 0:02:14]} 24. Rd1 {[%clk 0:01:19]}  Nc4 {[%clk 0:02:14]} 25. Qb3 {[%clk 0:01:13]}  Rc5 {[%clk 0:02:13]} 26. Nd5 {[%clk 0:01:10]}  Rxd5 {[%clk 0:02:13]} 27. Qxc4 {[%clk 0:01:10]}  Rad8 {[%clk 0:02:13]} 28. Rxd5 {[%clk 0:01:06]}  Qxd5 {[%clk 0:02:14]} 29. Qa6 {[%clk 0:01:06]}  Rd7 {[%clk 0:02:07]} 30. Re1 {[%clk 0:01:06]}  Kg7 {[%clk 0:02:07]} 31. h4 {[%clk 0:01:05]}  h5 {[%clk 0:02:07]} 32. Qc8 {[%clk 0:01:00]}  Rd8 {[%clk 0:02:02]} 33. Qa6 {[%clk 0:00:59]}  Qd7 {[%clk 0:02:01]} 34. Re3 {[%clk 0:00:55]}  Rc8 {[%clk 0:02:00]} 35. Rf3 {[%clk 0:00:54]}  Rc1+ {[%clk 0:01:54]} 36. Kg2 {[%clk 0:00:54]}  Qd1 {[%clk 0:01:51]} 0-1


[Site "https://www.chess.com"]

[Event "Titled Tuesday Blitz April 12 Late 2022"]
[White "Sailer, Mike"]
[Black "Papp, Petra"]
[WhiteFideId "2012901"]
[BlackFideId "739049"]
[WhiteElo "2109"]
[BlackElo "2259"]
[Result "0-1"]
[Round "07"]
[TimeControl "180+1"]
[Date "2022.04.13"]
[WhiteClock "0:00:01"]
[BlackClock "0:00:48"]

1. d4 {[%clk 0:02:56]}  Nf6 {[%clk 0:02:59]} 2. Nf3 {[%clk 0:02:55]}  c5 {[%clk 0:02:58]} 3. c3 {[%clk 0:02:52]}  d5 {[%clk 0:02:54]} 4. Bf4 {[%clk 0:02:47]}  g6 {[%clk 0:02:54]} 5. e3 {[%clk 0:02:47]}  Bg7 {[%clk 0:02:54]} 6. Be2 {[%clk 0:02:47]}  O-O {[%clk 0:02:54]} 7. O-O {[%clk 0:02:46]}  Nc6 {[%clk 0:02:54]} 8. Nbd2 {[%clk 0:02:46]}  Nd7 {[%clk 0:02:54]} 9. h3 {[%clk 0:02:43]}  e5 {[%clk 0:02:54]} 10. dxe5 {[%clk 0:02:41]}  Ndxe5 {[%clk 0:02:54]} 11. Nxe5 {[%clk 0:02:41]}  Nxe5 {[%clk 0:02:52]} 12. Nf3 {[%clk 0:02:27]}  Nc6 {[%clk 0:02:45]} 13. Qc1 {[%clk 0:02:20]}  Qe7 {[%clk 0:02:40]} 14. Rd1 {[%clk 0:02:19]}  Rd8 {[%clk 0:02:39]} 15. Bb5 {[%clk 0:02:10]}  Bf5 {[%clk 0:02:37]} 16. Bxc6 {[%clk 0:01:56]}  bxc6 {[%clk 0:02:28]} 17. Bg5 {[%clk 0:01:53]}  f6 {[%clk 0:02:27]} 18. Bf4 {[%clk 0:01:52]}  a5 {[%clk 0:02:25]} 19. c4 {[%clk 0:01:48]}  g5 {[%clk 0:02:22]} 20. Bg3 {[%clk 0:01:44]}  h5 {[%clk 0:02:22]} 21. Nd2 {[%clk 0:01:29]}  h4 {[%clk 0:02:08]} 22. Bh2 {[%clk 0:01:28]}  g4 {[%clk 0:02:08]} 23. hxg4 {[%clk 0:01:26]}  Bxg4 {[%clk 0:02:08]} 24. Re1 {[%clk 0:01:18]}  h3 {[%clk 0:02:07]} 25. cxd5 {[%clk 0:01:08]}  cxd5 {[%clk 0:01:59]} 26. e4 {[%clk 0:01:02]}  dxe4 {[%clk 0:01:47]} 27. Nxe4 {[%clk 0:00:59]}  hxg2 {[%clk 0:01:45]} 28. Nxc5 {[%clk 0:00:48]}  Qf7 {[%clk 0:01:33]} 29. Qf4 {[%clk 0:00:36]}  f5 {[%clk 0:01:18]} 30. Ne6 {[%clk 0:00:34]}  Re8 {[%clk 0:01:14]} 31. Nxg7 {[%clk 0:00:30]}  Qxg7 {[%clk 0:01:12]} 32. Qc4+ {[%clk 0:00:23]}  Kh7 {[%clk 0:01:05]} 33. Be5 {[%clk 0:00:15]}  Rxe5 {[%clk 0:00:59]} 34. Rxe5 {[%clk 0:00:14]}  Qxe5 {[%clk 0:00:59]} 35. Kxg2 {[%clk 0:00:06]}  Qe4+ {[%clk 0:00:55]} 36. Qxe4 {[%clk 0:00:06]}  fxe4 {[%clk 0:00:56]} 37. Kg3 {[%clk 0:00:06]}  Bf3 {[%clk 0:00:56]} 38. Rc1 {[%clk 0:00:03]}  Kg6 {[%clk 0:00:51]} 39. Kf4 {[%clk 0:00:04]}  Ra6 {[%clk 0:00:50]} 40. b3 {[%clk 0:00:03]}  Kf6 {[%clk 0:00:49]} 41. a3 {[%clk 0:00:03]}  Rb6 {[%clk 0:00:48]} 42. Rc3 {[%clk 0:00:03]}  Ke6 {[%clk 0:00:48]} 43. Ke3 {[%clk 0:00:03]}  Kd5 {[%clk 0:00:48]} 44. Rc1 {[%clk 0:00:01]}  Rxb3+ {[%clk 0:00:48]} 0-1


[Site "https://www.chess.com"]

[Event "Titled Tuesday Blitz April 12 Late 2022"]
[White "Sellitti, Federico"]
[Black "Grave, Jacob Templen"]
[WhiteFideId "821829"]
[BlackFideId "1542656"]
[WhiteElo "2528"]
[BlackElo "1737"]
[Result "1-0"]
[Round "07"]
[TimeControl "180+1"]
[Date "2022.04.13"]
[WhiteClock "0:01:35"]
[BlackClock "0:00:59"]

1. e4 {[%clk 0:02:43]}  e5 {[%clk 0:02:59]} 2. Nc3 {[%clk 0:02:42]}  Nf6 {[%clk 0:02:56]} 3. f4 {[%clk 0:02:42]}  d5 {[%clk 0:02:55]} 4. fxe5 {[%clk 0:02:43]}  Nxe4 {[%clk 0:02:55]} 5. Qf3 {[%clk 0:02:43]}  Nc6 {[%clk 0:02:50]} 6. Bb5 {[%clk 0:02:42]}  Nxc3 {[%clk 0:02:28]} 7. dxc3 {[%clk 0:02:43]}  Qh4+ {[%clk 0:02:26]} 8. g3 {[%clk 0:02:43]}  Qe4+ {[%clk 0:02:27]} 9. Qxe4 {[%clk 0:02:43]}  dxe4 {[%clk 0:02:28]} 10. Ne2 {[%clk 0:02:37]}  Bd7 {[%clk 0:02:24]} 11. Bxc6 {[%clk 0:02:37]}  Bxc6 {[%clk 0:02:24]} 12. Nd4 {[%clk 0:02:38]}  O-O-O {[%clk 0:02:19]} 13. Nxc6 {[%clk 0:02:36]}  bxc6 {[%clk 0:02:19]} 14. Bf4 {[%clk 0:02:32]}  Be7 {[%clk 0:02:14]} 15. h4 {[%clk 0:02:31]}  h6 {[%clk 0:02:13]} 16. Ke2 {[%clk 0:02:25]}  g5 {[%clk 0:02:10]} 17. hxg5 {[%clk 0:02:25]}  hxg5 {[%clk 0:02:09]} 18. Be3 {[%clk 0:02:25]}  Kb7 {[%clk 0:01:58]} 19. Raf1 {[%clk 0:02:17]}  Rxh1 {[%clk 0:01:52]} 20. Rxh1 {[%clk 0:02:18]}  Rd5 {[%clk 0:01:51]} 21. Rh7 {[%clk 0:02:01]}  Rxe5 {[%clk 0:01:51]} 22. Rxf7 {[%clk 0:02:00]}  Bd6 {[%clk 0:01:51]} 23. g4 {[%clk 0:01:57]}  Ra5 {[%clk 0:01:37]} 24. a3 {[%clk 0:01:55]}  Rb5 {[%clk 0:01:37]} 25. b4 {[%clk 0:01:55]}  a5 {[%clk 0:01:23]} 26. Bd4 {[%clk 0:01:41]}  axb4 {[%clk 0:01:19]} 27. cxb4 {[%clk 0:01:41]}  Bf4 {[%clk 0:01:06]} 28. c4 {[%clk 0:01:37]}  Rb6 {[%clk 0:00:59]} 29. Bxb6 {[%clk 0:01:37]}  Kxb6 {[%clk 0:00:59]} 30. Rxf4 {[%clk 0:01:34]}  gxf4 {[%clk 0:00:59]} 31. g5 {[%clk 0:01:35]} 1-0


[Site "https://www.chess.com"]

[Event "Titled Tuesday Blitz April 12 Late 2022"]
[White "Sheng, Joshua"]
[Black "Shuvalova, Polina"]
[WhiteFideId "2057360"]
[BlackFideId "24171760"]
[WhiteElo "2142"]
[BlackElo "2355"]
[Result "0-1"]
[Round "07"]
[TimeControl "180+1"]
[Date "2022.04.12"]
[WhiteClock "0:00:11"]
[BlackClock "0:00:04"]

1. e4 {[%clk 0:03:00]}  c5 {[%clk 0:02:59]} 2. Nf3 {[%clk 0:03:00]}  d6 {[%clk 0:03:00]} 3. d4 {[%clk 0:03:00]}  cxd4 {[%clk 0:03:00]} 4. Nxd4 {[%clk 0:03:01]}  Nf6 {[%clk 0:03:01]} 5. Nc3 {[%clk 0:03:00]}  Nc6 {[%clk 0:03:02]} 6. Bg5 {[%clk 0:02:59]}  Bd7 {[%clk 0:03:01]} 7. Qd2 {[%clk 0:02:58]}  Rc8 {[%clk 0:03:02]} 8. f4 {[%clk 0:02:57]}  Nxd4 {[%clk 0:03:00]} 9. Qxd4 {[%clk 0:02:58]}  Qa5 {[%clk 0:03:01]} 10. e5 {[%clk 0:02:55]}  dxe5 {[%clk 0:02:59]} 11. fxe5 {[%clk 0:02:56]}  e6 {[%clk 0:02:59]} 12. O-O-O {[%clk 0:02:51]}  Bc6 {[%clk 0:02:58]} 13. Bc4 {[%clk 0:02:36]}  Nd7 {[%clk 0:02:48]} 14. Rhe1 {[%clk 0:02:24]}  Bc5 {[%clk 0:02:39]} 15. Qg4 {[%clk 0:02:14]}  h5 {[%clk 0:02:25]} 16. Qf4 {[%clk 0:02:03]}  Bb4 {[%clk 0:02:19]} 17. Rd3 {[%clk 0:01:35]}  b5 {[%clk 0:01:48]} 18. Bb3 {[%clk 0:01:32]}  Nc5 {[%clk 0:01:48]} 19. Rg3 {[%clk 0:01:11]}  Nxb3+ {[%clk 0:01:47]} 20. cxb3 {[%clk 0:01:08]}  Bd5 {[%clk 0:01:42]} 21. Kb1 {[%clk 0:01:01]}  Bxc3 {[%clk 0:01:36]} 22. bxc3 {[%clk 0:01:01]}  Rxc3 {[%clk 0:01:35]} 23. Qd2 {[%clk 0:00:57]}  b4 {[%clk 0:01:32]} 24. Rc1 {[%clk 0:00:53]}  Be4+ {[%clk 0:01:17]} 25. Kb2 {[%clk 0:00:40]}  Qa3+ {[%clk 0:01:16]} 26. Ka1 {[%clk 0:00:40]}  Rxc1+ {[%clk 0:01:10]} 27. Qxc1 {[%clk 0:00:41]}  Qxc1+ {[%clk 0:01:04]} 28. Bxc1 {[%clk 0:00:41]}  O-O {[%clk 0:01:04]} 29. Bd2 {[%clk 0:00:42]}  a5 {[%clk 0:01:03]} 30. a3 {[%clk 0:00:42]}  Rd8 {[%clk 0:01:02]} 31. Bh6 {[%clk 0:00:35]}  Bg6 {[%clk 0:00:53]} 32. Bg5 {[%clk 0:00:35]}  Rd1+ {[%clk 0:00:51]} 33. Kb2 {[%clk 0:00:35]}  bxa3+ {[%clk 0:00:43]} 34. Kxa3 {[%clk 0:00:36]}  Ra1+ {[%clk 0:00:44]} 35. Kb2 {[%clk 0:00:36]}  Re1 {[%clk 0:00:42]} 36. Re3 {[%clk 0:00:34]}  Rg1 {[%clk 0:00:39]} 37. Re2 {[%clk 0:00:33]}  Bd3 {[%clk 0:00:37]} 38. Rd2 {[%clk 0:00:33]}  Be4 {[%clk 0:00:37]} 39. g3 {[%clk 0:00:33]}  Bd5 {[%clk 0:00:36]} 40. Bd8 {[%clk 0:00:30]}  Re1 {[%clk 0:00:32]} 41. Bxa5 {[%clk 0:00:29]}  Rxe5 {[%clk 0:00:31]} 42. Bc3 {[%clk 0:00:30]}  Re3 {[%clk 0:00:26]} 43. b4 {[%clk 0:00:27]}  f6 {[%clk 0:00:25]} 44. b5 {[%clk 0:00:26]}  Re4 {[%clk 0:00:19]} 45. Bd4 {[%clk 0:00:21]}  e5 {[%clk 0:00:15]} 46. Bc5 {[%clk 0:00:18]}  Bb7 {[%clk 0:00:11]} 47. Rd7 {[%clk 0:00:18]}  Rc4 {[%clk 0:00:11]} 48. Ba3 {[%clk 0:00:17]}  Bf3 {[%clk 0:00:09]} 49. b6 {[%clk 0:00:17]}  Rc8 {[%clk 0:00:08]} 50. Bd6 {[%clk 0:00:16]}  Bc6 {[%clk 0:00:06]} 51. Re7 {[%clk 0:00:17]}  Rd8 {[%clk 0:00:06]} 52. Bc7 {[%clk 0:00:17]}  Rd5 {[%clk 0:00:05]} 53. Kc3 {[%clk 0:00:16]}  Rb5 {[%clk 0:00:06]} 54. Kc4 {[%clk 0:00:17]}  Rb1 {[%clk 0:00:07]} 55. Kc5 {[%clk 0:00:17]}  Bf3 {[%clk 0:00:06]} 56. Bd8 {[%clk 0:00:17]}  Kh7 {[%clk 0:00:06]} 57. Rc7 {[%clk 0:00:17]}  Kg6 {[%clk 0:00:06]} 58. Be7 {[%clk 0:00:17]}  e4 {[%clk 0:00:04]} 59. Bf8 {[%clk 0:00:17]}  e3 {[%clk 0:00:04]} 60. Rxg7+ {[%clk 0:00:17]}  Kf5 {[%clk 0:00:05]} 61. Re7 {[%clk 0:00:18]}  e2 {[%clk 0:00:05]} 62. b7 {[%clk 0:00:11]}  Rxb7 {[%clk 0:00:05]} 63. Re3 {[%clk 0:00:09]}  Rb1 {[%clk 0:00:02]} 64. Rxf3+ {[%clk 0:00:09]}  Kg4 {[%clk 0:00:02]} 65. Rf4+ {[%clk 0:00:09]}  Kh3 {[%clk 0:00:03]} 66. Re4 {[%clk 0:00:08]}  e1=Q {[%clk 0:00:03]} 67. Rh4+ {[%clk 0:00:07]}  Kg2 {[%clk 0:00:03]} 68. Bd6 {[%clk 0:00:08]}  Qc3+ {[%clk 0:00:03]} 69. Kd5 {[%clk 0:00:08]}  Rd1+ {[%clk 0:00:03]} 70. Ke6 {[%clk 0:00:09]}  Qe3+ {[%clk 0:00:04]} 71. Kxf6 {[%clk 0:00:09]}  Rxd6+ {[%clk 0:00:04]} 72. Kf5 {[%clk 0:00:10]}  Qf3+ {[%clk 0:00:04]} 73. Ke5 {[%clk 0:00:10]}  Qf6+ {[%clk 0:00:03]} 74. Ke4 {[%clk 0:00:10]}  Rd4+ {[%clk 0:00:04]} 75. Ke3 {[%clk 0:00:11]}  Qf2# {[%clk 0:00:04]} 0-1


[Site "https://www.chess.com"]

[Event "Titled Tuesday Blitz April 12 Late 2022"]
[White "Shimanov, Aleksandr"]
[Black "Janaszak, Dawid"]
[WhiteFideId "4198603"]
[BlackFideId "1119206"]
[WhiteElo "2636"]
[BlackElo "2199"]
[Result "1-0"]
[Round "07"]
[TimeControl "180+1"]
[Date "2022.04.12"]
[WhiteClock "0:00:06"]
[BlackClock "0:00:04"]

1. d4 {[%clk 0:03:00]}  Nf6 {[%clk 0:02:59]} 2. Nc3 {[%clk 0:03:00]}  d5 {[%clk 0:02:55]} 3. Bf4 {[%clk 0:03:00]}  a6 {[%clk 0:02:50]} 4. e3 {[%clk 0:02:59]}  c5 {[%clk 0:02:42]} 5. dxc5 {[%clk 0:02:58]}  Qa5 {[%clk 0:02:42]} 6. Qd2 {[%clk 0:02:51]}  Nc6 {[%clk 0:02:39]} 7. O-O-O {[%clk 0:02:46]}  e5 {[%clk 0:02:26]} 8. Bg5 {[%clk 0:02:44]}  d4 {[%clk 0:01:50]} 9. exd4 {[%clk 0:02:40]}  exd4 {[%clk 0:01:51]} 10. Bxf6 {[%clk 0:02:27]}  gxf6 {[%clk 0:01:50]} 11. Qe1+ {[%clk 0:02:09]}  Be6 {[%clk 0:01:46]} 12. Nd5 {[%clk 0:00:47]}  Qxa2 {[%clk 0:01:26]} 13. Nxf6+ {[%clk 0:00:44]}  Ke7 {[%clk 0:01:18]} 14. Nh5 {[%clk 0:00:33]}  Qa1+ {[%clk 0:01:10]} 15. Kd2 {[%clk 0:00:33]}  Qxb2 {[%clk 0:01:08]} 16. Bd3 {[%clk 0:00:34]}  Bh6+ {[%clk 0:01:05]} 17. f4 {[%clk 0:00:34]}  Rhg8 {[%clk 0:00:58]} 18. Qh4+ {[%clk 0:00:32]}  Kf8 {[%clk 0:00:53]} 19. Ng3 {[%clk 0:00:30]}  Bg7 {[%clk 0:00:30]} 20. Nf3 {[%clk 0:00:27]}  Qc3+ {[%clk 0:00:25]} 21. Ke2 {[%clk 0:00:27]}  Qxc5 {[%clk 0:00:25]} 22. Kf2 {[%clk 0:00:23]}  Nb4 {[%clk 0:00:23]} 23. Ne4 {[%clk 0:00:22]}  Qe7 {[%clk 0:00:21]} 24. Nfg5 {[%clk 0:00:20]}  Nxd3+ {[%clk 0:00:18]} 25. cxd3 {[%clk 0:00:20]}  h6 {[%clk 0:00:13]} 26. Nh7+ {[%clk 0:00:20]}  Ke8 {[%clk 0:00:13]} 27. Nhf6+ {[%clk 0:00:14]}  Kf8 {[%clk 0:00:13]} 28. g3 {[%clk 0:00:14]}  Bxf6 {[%clk 0:00:11]} 29. Nxf6 {[%clk 0:00:09]}  Rg6 {[%clk 0:00:11]} 30. Nh7+ {[%clk 0:00:09]}  Ke8 {[%clk 0:00:10]} 31. Qh5 {[%clk 0:00:10]}  Bg4 {[%clk 0:00:09]} 32. Nf6+ {[%clk 0:00:08]}  Qxf6 {[%clk 0:00:07]} 33. Rde1+ {[%clk 0:00:08]}  Kf8 {[%clk 0:00:07]} 34. Qc5+ {[%clk 0:00:08]}  Kg7 {[%clk 0:00:07]} 35. Re5 {[%clk 0:00:08]}  Qc6 {[%clk 0:00:07]} 36. Qxd4 {[%clk 0:00:06]}  Qg2+ {[%clk 0:00:06]} 37. Kxg2 {[%clk 0:00:06]}  f6 {[%clk 0:00:05]} 38. Re7+ {[%clk 0:00:06]}  Kf8 {[%clk 0:00:04]} 39. Rhe1 {[%clk 0:00:06]} 1-0


[Site "https://www.chess.com"]

[Event "Titled Tuesday Blitz April 12 Late 2022"]
[White "Stelmaszyk, Nico"]
[Black "Petrova, Irina"]
[WhiteFideId "16200462"]
[BlackFideId "14124122"]
[WhiteElo "2119"]
[BlackElo "1993"]
[Result "0-1"]
[Round "07"]
[TimeControl "180+1"]
[Date "2022.04.13"]
[WhiteClock "0:01:04"]
[BlackClock "0:00:49"]

1. e4 {[%clk 0:02:57]}  d6 {[%clk 0:03:00]} 2. d4 {[%clk 0:02:56]}  Nf6 {[%clk 0:02:57]} 3. Bd3 {[%clk 0:02:54]}  e5 {[%clk 0:02:56]} 4. c3 {[%clk 0:02:54]}  d5 {[%clk 0:02:54]} 5. dxe5 {[%clk 0:02:51]}  Nxe4 {[%clk 0:02:53]} 6. Bxe4 {[%clk 0:02:51]}  dxe4 {[%clk 0:02:54]} 7. Qxd8+ {[%clk 0:02:51]}  Kxd8 {[%clk 0:02:55]} 8. Bg5+ {[%clk 0:02:50]}  Be7 {[%clk 0:02:55]} 9. Bxe7+ {[%clk 0:02:51]}  Kxe7 {[%clk 0:02:56]} 10. Nd2 {[%clk 0:02:51]}  Bf5 {[%clk 0:02:55]} 11. Ne2 {[%clk 0:02:50]}  Nc6 {[%clk 0:02:50]} 12. Nd4 {[%clk 0:02:47]}  Nxd4 {[%clk 0:02:39]} 13. cxd4 {[%clk 0:02:48]}  Rad8 {[%clk 0:02:39]} 14. Nb3 {[%clk 0:02:48]}  Be6 {[%clk 0:02:36]} 15. O-O-O {[%clk 0:02:34]}  Bxb3 {[%clk 0:02:33]} 16. axb3 {[%clk 0:02:35]}  f5 {[%clk 0:02:32]} 17. Rhe1 {[%clk 0:02:15]}  Rd5 {[%clk 0:02:29]} 18. Kc2 {[%clk 0:02:12]}  c5 {[%clk 0:02:24]} 19. f3 {[%clk 0:02:05]}  exf3 {[%clk 0:02:10]} 20. gxf3 {[%clk 0:02:02]}  cxd4 {[%clk 0:01:58]} 21. f4 {[%clk 0:01:59]}  Rc8+ {[%clk 0:01:54]} 22. Kb1 {[%clk 0:01:55]}  d3 {[%clk 0:01:44]} 23. Re3 {[%clk 0:01:55]}  Rc2 {[%clk 0:01:36]} 24. Rexd3 {[%clk 0:01:50]}  Rxd3 {[%clk 0:01:37]} 25. Rxd3 {[%clk 0:01:41]}  Rxh2 {[%clk 0:01:36]} 26. Rd4 {[%clk 0:01:36]}  h5 {[%clk 0:01:33]} 27. Rc4 {[%clk 0:01:36]}  Rd2 {[%clk 0:01:25]} 28. Kc1 {[%clk 0:01:33]}  Rd7 {[%clk 0:01:23]} 29. Rc3 {[%clk 0:01:32]}  g6 {[%clk 0:01:22]} 30. Rg3 {[%clk 0:01:31]}  Kf7 {[%clk 0:01:14]} 31. e6+ {[%clk 0:01:25]}  Kxe6 {[%clk 0:01:14]} 32. Rxg6+ {[%clk 0:01:26]}  Kd5 {[%clk 0:01:13]} 33. Rh6 {[%clk 0:01:24]}  Ke4 {[%clk 0:01:13]} 34. Rxh5 {[%clk 0:01:23]}  Kxf4 {[%clk 0:01:14]} 35. Rh1 {[%clk 0:01:20]}  Ke5 {[%clk 0:01:09]} 36. Re1+ {[%clk 0:01:20]}  Kf6 {[%clk 0:01:09]} 37. Rf1 {[%clk 0:01:20]}  Rd4 {[%clk 0:01:05]} 38. Kc2 {[%clk 0:01:17]}  f4 {[%clk 0:00:58]} 39. Kc3 {[%clk 0:01:17]}  Ke5 {[%clk 0:00:57]} 40. Rh1 {[%clk 0:01:17]}  Rd7 {[%clk 0:00:56]} 41. Rh8 {[%clk 0:01:14]}  f3 {[%clk 0:00:54]} 42. Rf8 {[%clk 0:01:14]}  Ke4 {[%clk 0:00:54]} 43. b4 {[%clk 0:01:10]}  Ke3 {[%clk 0:00:54]} 44. Re8+ {[%clk 0:01:10]}  Kf2 {[%clk 0:00:54]} 45. Kc4 {[%clk 0:01:08]}  Kg2 {[%clk 0:00:50]} 46. Rg8+ {[%clk 0:01:07]}  Kf1 {[%clk 0:00:50]} 47. b3 {[%clk 0:01:04]}  f2 {[%clk 0:00:50]} 48. Rf8 {[%clk 0:01:05]}  Re7 {[%clk 0:00:50]} 49. b5 {[%clk 0:01:04]}  Ke2 {[%clk 0:00:49]} 0-1


[Site "https://www.chess.com"]

[Event "Titled Tuesday Blitz April 12 Late 2022"]
[White "Tanenbaum, Zachary"]
[Black "Khabinets, Ivan"]
[WhiteFideId "2060850"]
[BlackFideId "14115980"]
[WhiteElo "2734"]
[BlackElo "2533"]
[Result "0-1"]
[Round "07"]
[TimeControl "180+1"]
[Date "2022.04.13"]
[WhiteClock "0:00:04"]
[BlackClock "0:02:13"]

1. e4 {[%clk 0:03:00]}  c5 {[%clk 0:02:59]} 2. Nf3 {[%clk 0:03:00]}  d6 {[%clk 0:03:00]} 3. d4 {[%clk 0:03:01]}  cxd4 {[%clk 0:03:01]} 4. Nxd4 {[%clk 0:03:01]}  e5 {[%clk 0:03:01]} 5. Bb5+ {[%clk 0:03:00]}  Bd7 {[%clk 0:03:01]} 6. Bxd7+ {[%clk 0:03:00]}  Qxd7 {[%clk 0:03:02]} 7. Ne2 {[%clk 0:02:56]}  Nf6 {[%clk 0:03:03]} 8. Nbc3 {[%clk 0:02:56]}  Qc6 {[%clk 0:03:03]} 9. Ng3 {[%clk 0:02:43]}  Nbd7 {[%clk 0:02:58]} 10. O-O {[%clk 0:02:35]}  g6 {[%clk 0:02:55]} 11. Bg5 {[%clk 0:02:31]}  Be7 {[%clk 0:02:55]} 12. Re1 {[%clk 0:02:20]}  O-O {[%clk 0:02:54]} 13. Nd5 {[%clk 0:02:18]}  Bd8 {[%clk 0:02:48]} 14. Bxf6 {[%clk 0:01:53]}  Nxf6 {[%clk 0:02:47]} 15. Nxf6+ {[%clk 0:01:52]}  Bxf6 {[%clk 0:02:48]} 16. Qd3 {[%clk 0:01:46]}  Rac8 {[%clk 0:02:43]} 17. c3 {[%clk 0:01:46]}  b5 {[%clk 0:02:41]} 18. Rad1 {[%clk 0:01:45]}  Rfd8 {[%clk 0:02:40]} 19. Nf1 {[%clk 0:01:42]}  Bg5 {[%clk 0:02:40]} 20. g3 {[%clk 0:01:08]}  h5 {[%clk 0:02:38]} 21. h4 {[%clk 0:01:08]}  Bh6 {[%clk 0:02:38]} 22. Qd5 {[%clk 0:00:52]}  a6 {[%clk 0:02:38]} 23. Qxc6 {[%clk 0:00:51]}  Rxc6 {[%clk 0:02:39]} 24. Rd5 {[%clk 0:00:51]}  Kf8 {[%clk 0:02:37]} 25. Red1 {[%clk 0:00:51]}  Ke7 {[%clk 0:02:38]} 26. Nh2 {[%clk 0:00:51]}  Rdc8 {[%clk 0:02:33]} 27. Nf3 {[%clk 0:00:50]}  Rb6 {[%clk 0:02:27]} 28. a3 {[%clk 0:00:25]}  Rc4 {[%clk 0:02:27]} 29. Re1 {[%clk 0:00:20]}  Ke6 {[%clk 0:02:25]} 30. Rd3 {[%clk 0:00:19]}  a5 {[%clk 0:02:25]} 31. Re2 {[%clk 0:00:18]}  b4 {[%clk 0:02:25]} 32. cxb4 {[%clk 0:00:16]}  axb4 {[%clk 0:02:26]} 33. a4 {[%clk 0:00:14]}  b3 {[%clk 0:02:20]} 34. a5 {[%clk 0:00:14]}  Rb5 {[%clk 0:02:19]} 35. Nd2 {[%clk 0:00:11]}  Rc2 {[%clk 0:02:17]} 36. Kf1 {[%clk 0:00:11]}  Rxb2 {[%clk 0:02:16]} 37. Rxd6+ {[%clk 0:00:10]}  Ke7 {[%clk 0:02:13]} 38. Rd3 {[%clk 0:00:07]}  Rxd2 {[%clk 0:02:12]} 39. Rdxd2 {[%clk 0:00:04]}  Bxd2 {[%clk 0:02:13]} 40. Rxd2 {[%clk 0:00:04]}  b2 {[%clk 0:02:13]} 0-1


[Site "https://www.chess.com"]